Cogmind - Beta 14 @@@ ROGUE MODE // 2024.08.16 @ 23:13:48 Player: Dzuchun Result: Destroyed by G-47 Trooper with Particle Gun Performance ------------- Evolutions (3) 1500 Regions Visited (6) 1200 Robots Destroyed (68) 340 Value Destroyed (2077) 2077 Prototype IDs (0) 0 Alien Tech Used (0) 0 Bonus (117) 117 TOTAL SCORE: 5234 Bonus ------- High Alert Combat Kills 117 Cogmind --------- Core Integrity 0/700 Matter 300/300 Energy 60/100 System Corruption 6% Temperature Cool (57) Movement Core (100) Ox1 Location -7/Lower Caves Parts ------- > --- POWER (2) -------- (None) > --- PROPULSION (2) --- (None) > --- UTILITY (5) ------ Hacking Suite > --- WEAPON (4) ------- Ion Cannon > --- INVENTORY (5) ---- Small Storage Unit Peak State ------------ > --- POWER ------------ Deuterium Engine Deuterium Engine > --- PROPULSION ------- Aluminum Leg Improved Carbon-fiber Leg > --- UTILITY ---------- Improved Heat Sink Compact Matter Pod Visual Processing Unit Seismic Detector Matter Filter > --- WEAPON ----------- Beam Rifle Field Laser High-powered Shotgun Flak Cannon > --- INVENTORY -------- Deuterium Engine Aluminum Leg Small Storage Unit Shock Bomb Launcher Mining Laser [Rating: 35] Favorites ----------- Power Ion Engine Engine Ion Engine Power Core Light Nuclear Core Propulsion Light Treads Treads Light Treads Leg Aluminum Leg Wheel Wheel Utility Visual Processing Unit Device Seismic Detector Storage Compact Matter Pod Processor Visual Processing Unit Hackware Hacking Suite Protection Makeshift Thermal Plating Weapon Rocket Launcher Energy Gun Heavy EM Pulse Gun Energy Cannon Plasma Cannon Ballistic Gun Light Assault Rifle Ballistic Cannon Light Cannon Launcher Rocket Launcher Special Weapon Mining Laser Build | -11 -10 -9 -8 -7 -7 -7 ------- Run | Yrd Mat Mat Mat Fac Low Low Slots Evolved 6 | . . 2 2 2 . . Power 1 | . . . . 1 . . Propulsion . | . . . . . . . Utility 3 | . . 2 . 1 . . Weapon 2 | . . . 2 . . . Parts Attached 96 | 7 6 38 25 13 3 4 Power 11 | 1 . 3 2 3 1 1 Engine 10 | 1 . 3 1 3 1 1 Core 1 | . . . 1 . . . Reactor . | . . . . . . . Propulsion 26 | 2 . 15 5 3 1 . Treads 12 | 2 . 9 1 . . . Leg 8 | . . 3 4 1 . . Wheel 6 | . . 3 . 2 1 . Hover . | . . . . . . . Flight . | . . . . . . . Utility 21 | 2 2 5 8 2 . 2 Device 13 | 1 . 5 5 2 . . Storage 4 | 1 . . 3 . . . Processor 2 | . 2 . . . . . Hackware 1 | . . . . . . 1 Protection 1 | . . . . . . 1 Artifact . | . . . . . . . Weapon 38 | 2 4 15 10 5 1 1 Energy Gun 8 | . . 3 4 1 . . Energy Cannon 2 | . . . 1 . . 1 Ballistic Gun 16 | 2 2 6 3 3 . . Ballistic Cannon 3 | . 1 1 1 . . . Launcher 8 | . 1 5 1 1 . . Special Weapon 1 | . . . . . 1 . Impact Weapon . | . . . . . . . Slashing Weapon . | . . . . . . . Piercing Weapon . | . . . . . . . Special Melee Weapon . | . . . . . . . Unidentified Prototypes . | . . . . . . . Corrupted Parts 7 | . . 4 2 1 . . System Corruption 22 | . . 10 7 5 . . Parts Lost 42 | . . 10 9 14 4 5 Power 8 | . . 1 2 2 1 2 Propulsion 10 | . . 3 2 2 2 1 Utility 10 | . . 3 1 4 . 2 Weapon 14 | . . 3 4 6 1 . Highest Loss Streak 12 | . . 2 4 12 4 5 To Critical Strikes 1 | . . . . 1 . . Average Slot Usage (%) 83 | . 99 85 85 87 34 25 Engine 9 | . 14 9 5 11 10 6 Treads 11 | . 28 13 10 . . . Leg 3 | . . . 4 13 . . Wheel 2 | . . 5 . . 13 2 Device 13 | . 4 15 16 17 . . Storage 3 | . 4 . 5 6 . . Processor 13 | . 19 20 9 7 7 3 Energy Gun 7 | . . 5 11 13 . . Energy Cannon 1 | . . . 3 . . 4 Ballistic Gun 8 | . 16 6 10 6 . . Ballistic Cannon 3 | . 11 2 . 6 . . Launcher 3 | . . 5 5 . . . Peak Build Rating 35 | 7 9 13 26 35 9 18 Average Rating 14 | 5 7 10 19 28 6 9 On Entrance 8 | . 7 8 10 22 5 6 Naked Turns . | . . . . . . . Heaviest Build 39 | 14 16 14 30 39 13 24 Greatest Support 49 | 40 40 46 49 28 26 16 Greatest Overweight (x) 7 | 2 . 1 6 3 . 7 Average Overweight (x) . | . . . . . . 1 Largest Inventory Capacity 8 | 8 8 5 5 5 5 5 Average Capacity 5 | 7 5 5 5 5 5 5 Most Carried 5 | 2 5 5 5 5 4 1 Average Carried 3 | 1 4 4 3 4 2 1 Final Capacity 8 | 8 5 5 5 5 5 5 Final Carried 5 | 2 5 5 4 4 1 1 Class Distribution -------------------- 39% | Scavenger-Skirmisher 31% | Scavenger-Mutant 22% | Mutant 7% | Skirmisher Dominant Class ---------------- Mutant | -10/Materials Scavenger-Mutant | -9/Materials Scavenger-Skirmisher | -8/Materials Scavenger-Skirmisher | -7/Factory Scavenger-Mutant | -7/Lower Caves Mutant | -7/Lower Caves Resources | -11 -10 -9 -8 -7 -7 -7 ----------- Run | Yrd Mat Mat Mat Fac Low Low Matter Collected 2007 | 229 143 809 697 69 29 31 Remotely . | . . . . . . . Salvage Created 2369 | 61 254 882 1003 109 . 60 Parts 152 | 4 17 62 59 7 . 3 Haulers Intercepted 2 | . . 1 1 . . . Recyclers Shooed 2 | 1 . 1 . . . . Parts Field Recycled . | . . . . . . . Retrieved Matter . | . . . . . . . Parts Self-Destructed 4 | . . . . . 3 1 Prevented . | . . . . . . . Kills | -11 -10 -9 -8 -7 -7 -7 ------- Run | Yrd Mat Mat Mat Fac Low Low Combat Hostiles Destroyed 45 | . 4 19 18 3 . 1 Melee 1 | . . . 1 . . . Guns 22 | . . 10 9 3 . . Cannons 11 | . 3 1 6 . . 1 AOE 11 | . 1 8 2 . . . Classes Destroyed 11 | 2 2 7 . . . . Worker 2 | . . 1 1 . . . Builder 4 | . . 2 1 1 . . Tunneler 2 | 1 . 1 . . . . Hauler 2 | . . 1 1 . . . Recycler 4 | 1 1 1 1 . . . Mechanic 1 | . . 1 . . . . Operator 2 | . . 1 1 . . . Watcher 6 | . 3 2 1 . . . Swarmer 5 | . . 3 1 1 . . Grunt 27 | . 4 10 12 . . 1 Sentry 13 | . . 6 5 2 . . Best Kill Streak 6 | 2 3 4 6 3 . 1 Combat Bots Only 4 | . 2 4 4 1 . 1 Max Kills in Single Turn 2 | 1 1 2 1 1 . 1 Gunslinging . | . . . . . . . Exploded 2 | . 1 2 1 . . . Melee 1 | . . . 1 . . . Uniques/NPCs Destroyed . | . . . . . . . Combat | -11 -10 -9 -8 -7 -7 -7 -------- Run | Yrd Mat Mat Mat Fac Low Low Hostile Shots Fired 548 | . 13 104 123 201 70 37 Missed 173 | . 5 28 32 77 25 6 Damage Taken 4889 | . 90 1202 1421 1344 336 496 Core 1397 | . . 305 382 311 207 192 Absorbed by Shields . | . . . . . . . Ignored by Resistances 36 | . . . . . . 36 Regen/Repaired (Parts) 167 | . . 58 109 . . . Core Remaining (%) 63 | 100 100 23 30 . . . Volleys Fired 186 | 3 15 91 57 12 . 8 Largest 4 | 2 2 2 4 4 . 1 Hottest 191 | 40 68 90 188 191 . 60 Shots Fired 381 | 6 30 135 172 30 . 8 Gun 257 | 6 13 89 128 21 . . Cannon 86 | . 15 28 30 5 . 8 Launcher 38 | . 2 18 14 4 . . Special . | . . . . . . . Kinetic 200 | 6 28 81 71 14 . . Thermal 68 | . . . 48 12 . 8 Explosive 34 | . 2 18 14 . . . Electromagnetic 79 | . . 36 39 4 . . Robot Hit Streak 15 | 3 13 14 15 8 . 2 Robot Miss Streak 6 | 1 2 5 6 4 . 4 Penetration Max 1 | . . . . 1 . . Secondary Targets 1 | . . 1 . . . . Max Gunslinging Chain 1 | . . 1 . . . . Shots Hit Robots 225 | 4 23 80 95 20 . 3 Core Hits 142 | 4 15 53 55 13 . 2 Critical Kills . | . . . . . . . Critical Parts Destroyed . | . . . . . . . Critical Strikes 2 | . . . 2 . . . Corrupt 2 | . . . 2 . . . Melee Attacks . | . . . . . . . Impact . | . . . . . . . Slashing . | . . . . . . . Piercing . | . . . . . . . Sneak Attacks . | . . . . . . . Combat Hostiles . | . . . . . . . Follow-up Attacks . | . . . . . . . Damage Inflicted 4938 | 47 453 1850 2086 411 . 91 Guns 2092 | 39 96 648 1004 305 . . Cannons 1171 | . 237 274 481 88 . 91 Explosions 1638 | . 120 928 572 18 . . Melee . | . . . . . . . Ramming 37 | 8 . . 29 . . . Kinetic 1745 | 39 333 564 547 262 . . Thermal 885 | . . 114 549 131 . 91 Explosive 1506 | . 120 814 572 . . . Electromagnetic 765 | . . 358 389 18 . . Impact . | . . . . . . . Slashing . | . . . . . . . Piercing . | . . . . . . . Highest Corruption 10 | . 1 10 10 6 6 6 Average Corruption 3 | . 1 6 3 1 6 6 Corruption Purged . | . . . . . . . Corruption Blocked . | . . . . . . . Effects 25 | . 1 3 9 3 7 2 Message Errors 6 | . 1 . 4 . 1 . Matter Fused 4 | . . . . 2 2 . Heat Flow Errors 3 | . . 2 1 . . . Energy Discharges 4 | . . 1 2 . 1 . Parts Fused 1 | . . . 1 . . . Data Loss (minor) 3 | . . . . 1 2 . Data Loss (major) 1 | . . . . . . 1 Misfires 1 | . . . 1 . . . Alerts 2 | . . . . . 1 1 Overload Shots . | . . . . . . . Overflow Damage 15 | . . 15 . . . . Projectiles . | . . . . . . . Explosions 15 | . . 15 . . . . Melee . | . . . . . . . Knockbacks 9 | . 3 4 2 . . . Impact . | . . . . . . . Kinetic 9 | . 3 4 2 . . . Secondary . | . . . . . . . Self-Inflicted Damage 296 | . 1 234 47 14 . . Shots 9 | . 1 5 2 1 . . Rammed 20 | 1 . . 19 . . . Targets Rammed 20 | 1 . . 19 . . . Kicked . | . . . . . . . Crushed . | . . . . . . . Highest Temperature 519 | . 20 249 519 174 . 61 Average Temperature 98 | . 8 29 144 83 . 28 Received Heat Transfer 1773 | . 48 396 711 198 87 333 Effects 4 | . . . 4 . . . Shutdowns 1 | . . . 1 . . . Energy Bleed 1 | . . . 1 . . . Interference 2 | . . . 2 . . . Siege Activations . | . . . . . . . Robots Corrupted . | . . . . . . . Combat Hostiles . | . . . . . . . Parts Fried 5 | . . 2 3 . . . Impact Corruptions 1 | . . . 1 . . . Robots Melted . | . . . . . . . Combat Hostiles . | . . . . . . . Parts Melted 1 | . . . 1 . . . Heat Transferred 1740 | . . 150 1146 296 . 148 Parts Sabotaged . | . . . . . . . Parts Stolen . | . . . . . . . Parts Stripped . | . . . . . . . Power Chain Reactions 3 | . . 3 . . . . Alert | -11 -10 -9 -8 -7 -7 -7 ------- Run | Yrd Mat Mat Mat Fac Low Low Peak Influence 537 | 10 117 437 537 244 . . Initial 244 | . 6 18 163 244 . . Average 227 | 5 51 230 357 176 . . Maximum Alert Level 2 | . . 2 2 1 . . Low Security (%) 37 | 100 100 30 11 34 . . Level 1 49 | . . 68 48 65 . . Level 2 12 | . . . 39 . . . Level 3 . | . . . . . . . Level 4 . | . . . . . . . Level 5 . | . . . . . . . High Security . | . . . . . . . Max Security . | . . . . . . . Squads Dispatched 12 | . . 5 7 . . . Investigation 5 | . . 3 2 . . . Extermination . | . . . . . . . Reinforcement 5 | . . 2 3 . . . Assault . | . . . . . . . Garrison 2 | . . . 2 . . . Intercept . | . . . . . . . Searches Triggered . | . . . . . . . Construction Impeded 1 | . . . 1 . . . Haulers Reinforced . | . . . . . . . Active Scanning Responses . | . . . . . . . Cargo Convoy Interrupts . | . . . . . . . Stealth | -11 -10 -9 -8 -7 -7 -7 --------- Run | Yrd Mat Mat Mat Fac Low Low Distress Signals 2 | . 1 . 1 . . . Communications Jammed . | . . . . . . . Distress Signals . | . . . . . . . Times Spotted 78 | . 8 28 29 6 2 5 Peak Tracking Total 6 | . 2 4 6 4 2 5 Tactical Retreats 7 | . . 1 5 1 . . Traps | -11 -10 -9 -8 -7 -7 -7 ------- Run | Yrd Mat Mat Mat Fac Low Low Traps Triggered 3 | . 1 1 . 1 . . Indirectly . | . . . . . . . Trap Hack Attempts . | . . . . . . . Triggered . | . . . . . . . Disarmed . | . . . . . . . Reprogrammed . | . . . . . . . Reused . | . . . . . . . Traps Extracted . | . . . . . . . Installed . | . . . . . . . Triggered . | . . . . . . . Machines | -11 -10 -9 -8 -7 -7 -7 ---------- Run | Yrd Mat Mat Mat Fac Low Low Machines Disabled 10 | . . 7 3 . . . Max in Single Turn 1 | . . 1 1 . . . Garrison Access 1 | . . . 1 . . . Machines Repaired . | . . . . . . . Machines Dismantled . | . . . . . . . Machines Sabotaged . | . . . . . . . Overloaded Fab Kills . | . . . . . . . Hacking | -11 -10 -9 -8 -7 -7 -7 --------- Run | Yrd Mat Mat Mat Fac Low Low Machines Accessed 19 | . 2 10 7 . . . Terminals 16 | . 2 9 5 . . . Fabricators . | . . . . . . . Repair Stations 2 | . . 1 1 . . . Recycling Units . | . . . . . . . Scanalyzers . | . . . . . . . Garrison Access 1 | . . . 1 . . . Total Hacks 61 | . 4 36 21 . . . Successful 35 | . 4 17 14 . . . Failed 26 | . . 19 7 . . . Catastrophic . | . . . . . . . Database Lockouts . | . . . . . . . Manual 51 | . 4 34 13 . . . Terminals 49 | . 4 32 13 . . . Fabricators . | . . . . . . . Repair Stations 8 | . . 4 4 . . . Recycling Units . | . . . . . . . Scanalyzers . | . . . . . . . Garrison Access 4 | . . . 4 . . . Terminal Hacks 11 | . 2 5 4 . . . Locate Traps 9 | . 2 3 4 . . . Hauler Manifests 1 | . . 1 . . . . Registered Components 1 | . . 1 . . . . Fabricator Hacks . | . . . . . . . Repair Station Hacks 8 | . . 4 4 . . . Scan Component 4 | . . 2 2 . . . Repair 4 | . . 2 2 . . . Recycling Unit Hacks . | . . . . . . . Scanalyzer . | . . . . . . . Garrison Access Hacks 1 | . . . 1 . . . Seal Access 1 | . . . 1 . . . Unauthorized Hacks 15 | . 2 8 5 . . . Terminals 15 | . 2 8 5 . . . Botnet 15 | . 2 8 5 . . . Fabricators . | . . . . . . . Repair Stations . | . . . . . . . Recycling Units . | . . . . . . . Scanalyzers . | . . . . . . . Garrison Access . | . . . . . . . Data Cores Recovered . | . . . . . . . Used . | . . . . . . . Hacking Detections 15 | . 1 8 6 . . . Full Trace Events 7 | . . 4 3 . . . Feedback Events 1 | . . . 1 . . . Corruption 1 | . . . 1 . . . Feedback Blocked . | . . . . . . . Robot Schematics Acquired . | . . . . . . . Robots Built . | . . . . . . . Authchips . | . . . . . . . Time . | . . . . . . . Total Robot Build Rating . | . . . . . . . Part Schematics Acquired . | . . . . . . . Parts Built . | . . . . . . . Authchips . | . . . . . . . Time . | . . . . . . . Total Part Build Rating . | . . . . . . . Parts Repaired 4 | . . 2 2 . . . Time 104 | . . 52 52 . . . Parts Recycled . | . . . . . . . Recycled Matter . | . . . . . . . Retrieved Matter . | . . . . . . . Retrieved Components . | . . . . . . . Parts Scanalyzed . | . . . . . . . Part Schematics Acquired . | . . . . . . . Parts Damaged . | . . . . . . . Bothacking | -11 -10 -9 -8 -7 -7 -7 ------------ Run | Yrd Mat Mat Mat Fac Low Low Used RIF Installer . | . . . . . . . Robots Hacked . | . . . . . . . Non-combat . | . . . . . . . Combat . | . . . . . . . Robot Hacks Applied . | . . . . . . . Relay Couplers Released . | . . . . . . . Fabnet Peak Effective % . | . . . . . . . Robots Rewired . | . . . . . . . Allies Hacked . | . . . . . . . Hacks Repelled . | . . . . . . . Allies | -11 -10 -9 -8 -7 -7 -7 -------- Run | Yrd Mat Mat Mat Fac Low Low Total Allies . | . . . . . . . Largest Group . | . . . . . . . Highest-Rated Group . | . . . . . . . Highest-Rated Ally . | . . . . . . . Total Orders . | . . . . . . . Ally Attacks . | . . . . . . . Total Damage . | . . . . . . . Kills . | . . . . . . . Allies Corrupted . | . . . . . . . Allies Melted . | . . . . . . . Intel | -11 -10 -9 -8 -7 -7 -7 ------- Run | Yrd Mat Mat Mat Fac Low Low Robot Analysis Total . | . . . . . . . Derelict Logs Recovered . | . . . . . . . Drone Launches . | . . . . . . . Drone Recoveries . | . . . . . . . Exploration | -11 -10 -9 -8 -7 -7 -7 ------------- Run | Yrd Mat Mat Mat Fac Low Low Turns Passed 4109 | 109 565 1345 1148 614 273 55 Spaces Moved 2189 | 59 249 783 452 330 294 22 Core 65 | 8 . 1 41 9 . 6 Treads 996 | 51 249 421 275 . . . Legs 458 | . . 9 136 313 . . Wheels 670 | . . 352 . 8 294 16 Hover . | . . . . . . . Flight . | . . . . . . . Fastest Speed 50 | 50 160 50 50 50 90 100 Average Speed 137 | 148 160 123 155 166 91 146 Slowest Speed 400 | 160 160 160 350 200 100 400 Overloaded Moves . | . . . . . . . Propulsion Burnouts . | . . . . . . . Robots Hopped . | . . . . . . . Cave-ins Triggered . | . . . . . . . Exploration Rate (%) 29 | 4 50 46 39 14 45 8 Regions Visited 6 Branch Regions 2 Pre-discovered Areas . | . . . . . . . Known Exits Taken 2 | . 1 1 . . . . Unknown Exits Taken 4 | 1 . . 1 1 1 . Scrap Searched 1 | . . . . . . 1 Spaces Dug 9 | . . 9 . . . . Terrain Destroyed 245 | . 8 160 77 . . . Melee . | . . . . . . . Projectile 8 | . . . 8 . . . AOE 237 | . 8 160 69 . . . Terrain Rammed . | . . . . . . . Walls Destroyed . | . . . . . . . Machines Disabled . | . . . . . . . Actions | -11 -10 -9 -8 -7 -7 -7 --------- Run | Yrd Mat Mat Mat Fac Low Low Total 2952 | 71 386 1021 773 369 297 35 Wait 426 | . 105 102 209 9 . 1 Move 2183 | 58 248 782 451 329 293 22 Hop . | . . . . . . . Pick Up 13 | 2 6 1 2 2 . . Fast Attach 45 | 7 1 12 14 6 1 4 Attach 9 | . . 2 2 3 2 . Detach 5 | . 1 1 3 . . . Swap 42 | . 5 24 9 4 . . Drop 23 | . 5 6 7 4 1 . Fire 186 | 3 15 91 57 12 . 8 Melee . | . . . . . . . Ram 19 | . . . 19 . . . Kick . | . . . . . . . Crush 1 | 1 . . . . . . Escape Stasis . | . . . . . . . Rewire . | . . . . . . . Trap . | . . . . . . . Miscellaneous . | . . . . . . . Route ------- -11/Scrapyard -10/Materials (discovered 2 exits: *Mat / *Min) -9/Materials (discovered 3 exits: *Mat x2 / [*Min]) -8/Materials -7/Factory -7/Lower Caves -7/Lower Caves History --------- Turn | Location | Event 13 | -11/Scrapyard | Discovered new exit (range 15) 110 | -11/Scrapyard | Entered Materials 311 | -10/Materials | Build established: Mutant 472 | -10/Materials | Discovered new exit (range 14) 497 | -10/Materials | Identified exit to Mines 592 | -10/Materials | Discovered new exit (range 16) 672 | -10/Materials | Identified exit to Materials 675 | -10/Materials | Entered another Materials area 675 | -9/Materials | Evolved 2 slots: Utility x2 826 | -9/Materials | Discovered new exit (range 9) 1029 | -9/Materials | Core integrity fell below 50% 1313 | -9/Materials | Build established: Scavenger-Mutant 1534 | -9/Materials | Discovered new exit (range 3) 1537 | -9/Materials | Identified exit to Materials 1740 | -9/Materials | Repaired Ion Engine 1767 | -9/Materials | Repaired Seismic Detector 1850 | -9/Materials | Discovered exit to Materials (range 18) 1959 | -9/Materials | System corruption reached 10% 2020 | -9/Materials | Entered another Materials area 2020 | -8/Materials | Evolved 2 slots: Weapon x2 2321 | -8/Materials | Build established: Scavenger-Skirmisher 2357 | -8/Materials | Repaired Seismic Detector 2385 | -8/Materials | Repaired Lgt. Treads 2998 | -8/Materials | Lost 4 parts (1p1n2w) 3014 | -8/Materials | Core integrity fell below 50% 3016 | -8/Materials | System corruption reached 10% 3164 | -8/Materials | Discovered new exit (range 3) 3168 | -8/Materials | Entered Factory 3168 | -7/Factory | Evolved 2 slots: Power x1, Utility x1 3670 | -7/Factory | Discovered new exit (range 18) 3782 | -7/Factory | Entered Lower Caves 3801 | -7/Lower Caves | Lost 12 parts (2p2n2u6w) 3993 | -7/Lower Caves | Discovered new exit (range 12) 3999 | -7/Lower Caves | Attracted the attention of an 0b10 checkpoint 4015 | -7/Lower Caves | Core integrity fell below 50% 4055 | -7/Lower Caves | Entered another Lower Caves area 4071 | -7/Lower Caves | Lost 4 parts (1p2n1w) 4095 | -7/Lower Caves | Core integrity fell below 20% 4110 | -7/Lower Caves | Destroyed by G-47 Trooper with Particle Gun Last Messages --------------- 04066_ Found Mak. Thermal Plating. 04066_ Found Hacking Suite. 04066_ Found 31 Matter. 04067_ Acquired 7 matter. 04068_ Acquired Mak. Thermal Plating. 04072_ Acquired Lgt. Deuterium Engine. 04075_ Acquired Ion Cannon. 04076_ Com. Wheel destroyed. 04076_ Acquired 24 matter. 04084_ Acquired Hacking Suite. 04085_ G-47 Trooper suffers critical hit (Burn). 04086_ Visual Processing Unit destroyed. 04086_ Critical hit (Burn: +37). 04087_ G-47 Trooper destroyed. 04088_ Deuterium Engine destroyed. 04091_ Lgt. Deuterium Engine destroyed. 04092_ Critical hit (Burn: +37). 04097_ Mak. Thermal Plating destroyed. 04107_ System corrupted: IFF burst signal emitted. 04108_ G-47 Trooper destroyed. Map ----- +----------------------------------------------------+ | ?????????????????????????????????????????????????? | | ?????????????????????????????????????????????????? | | ?????????????????????????????????????????????????? | | ?????????????????????????????????????????????????? | | ??????????????????????????#####??????????????????? | | ??????????????????????????? ??????????????????? | | ??????????????????????????? ??????????????????? | | ???????????????????????????? ??????????????????? | | ?????????????????????#####??# ###???????????????? | | ????????????????????## ## # ???????????????? | | ????????????????????# # ???????????????? | | ????????????????????# ???????????????? | | ?????????????????????# ########????????? | | ??????????????????????# ?????????? | | ???????????????????#### ??????????? | | ????????????????? #???????????? | | ????????????????????? ##??????????? | | ??????????????????????# ????# #??????????? | | ??????????????????????# ????## #??????????? | | ??????????????????????# ?????# ###??????????? | | ??????????????????????# ?????# ##????????????? | | ??????????????????????# g?????# #?????????????? | | ??????????????????????# ##??## #?????????????? | | ?????????????????????## ##?# #?????????????? | | ?????????????????????# #?# ##?????????????? | | ???????????????????### @ ### ##??????? #????? | | ???????????????????# gg%### #### #???? | | ???????????????????# = !% #??? | | ???????????????????# #??? | | ???????????????????# ###### #### #???? | | ???????????????????# ?????# #????# #???? | | ?????????????????"""##" ?????# #??????# #???? | | ?????????????????"""?""??????# #????????? #???? | | ?????????????????" ? ??????## #???????????????? | | ???????????????????""""???????# #???????????????? | | ?????????????????????#????????? #???????????????? | | ??????????????????????????????? ???????????????? | | ???????????????????????????????# ???????????????? | | ???????????????????????????????? ??????????????? | | ????????????????????????????????# #??????????????? | | ?????????????????????????????????##??????????????? | | ?????????????????????????????????????????????????? | | ?????????????????????????????????????????????????? | | ?????????????????????????????????????????????????? | | ?????????????????????????????????????????????????? | | ?????????????????????????????????????????????????? | | ?????????????????????????????????????????????????? | | ?????????????????????????????????????????????????? | | ?????????????????????????????????????????????????? | | ?????????????????????????????????????????????????? | +----------------------------------------------------+ Best States ------------- Heat Dissipation 59 Energy Generation 23 Energy Capacity 450 Matter Stores 450 Matter Capacity 450 Sight Range 18 Robot Scan Range 14 Terrain Scan Density 10 Additional Mass Support 9 Armor Coverage 100 Resistance: TH 10 Evasion (%) 55 Recoil Reduction 2 Matter Filtering 30 Offensive Hacking 10 Item Schematics ----------------- None Robot Schematics ------------------ None Fabricated ------------ Nothing Alien Tech Used ----------------- None Achievements -------------- Remodeling Challenges ------------ None Game ------ Seed ImpulseEfficiencyImmobilizer Manual? 0 Play Time 00:57:52 Cumulative 13.7 hours Start 2024.08.15 @ 23:33:05 End 2024.08.16 @ 23:13:48 Sessions 2 Manual Loads 0 Difficulty Rogue Special Mode None Game No. 21 Rogue 21 Adventurer 0 Explorer 0 Win Type - Total 0 Types 0/0/0/0/0/0/0/0/0 Lore% 7 Gallery% 14 Achievement% 15 Wizard Run 0 Options --------- Layout 0 ASCII 0 Keyboard 1 Movement Vi Keybinds 0 Fullscreen 1 Font 18/X11Bold Map View 76x50 Zoom Use 0% Tactical HUD 1 Map Filters NONE Filters NONE Steam 1 RUN: 972f542f-2a2e-402b-9ac3-c8f92a224f25